bitfinex-derivatives/quotes_BTCF0:USTF0_20260106
["timestamp","ask_amount","ask_price","bid_price","bid_amount"]
[1767718895106,0.0918,92689.0,92666.0,0.0918]
[1767718895302,0.0918,92689.0,92669.0,0.010794]
[1767718895706,0.10147102,92692.0,92669.0,0.010794]
[1767718895918,0.0918,92691.0,92669.0,0.010794]
[1767718896118,0.18247902,92691.0,92669.0,0.010794]
[1767718896415,0.09067902,92694.0,92668.0,0.09365272]
[1767718896622,0.0918,92693.0,92670.0,0.010794]
[1767718896918,0.0918,92692.0,92669.0,0.07365272]
[1767718897120,0.0918,92692.0,92670.0,0.010794]
[1767718897313,0.0918,92691.0,92672.0,0.010794]
[1767718897614,0.0918,92697.0,92679.0,0.010793]
[1767718897810,0.010791,92695.0,92675.0,0.0418214]
[1767718898010,0.010791,92696.0,92675.0,0.0418214]
[1767718898210,0.0918,92697.0,92671.0,0.0918]
[1767718898211,0.13274007,92688.0,92671.0,0.0918]
[1767718898405,0.09067902,92687.0,92671.0,0.0918]
[1767718899720,0.10147102,92687.0,92671.0,0.0918]
[1767718899918,0.09067902,92686.0,92671.0,0.0918]
[1767718901013,0.09067902,92686.0,92665.0,0.010795]
[1767718901217,0.09067902,92686.0,92664.0,0.0918]
[1767718901415,0.010793,92685.0,92664.0,0.102595]
[1767718901611,0.010793,92680.0,92664.0,0.0918]
[1767718901810,0.10147202,92683.0,92664.0,0.0918]
[1767718902010,0.09067902,92683.0,92664.0,0.0918]
[1767718902411,0.09067902,92683.0,92659.0,0.13547412]
[1767718902720,0.09067902,92683.0,92662.0,0.010795]
[1767718903313,0.09067902,92680.0,92653.0,0.0418214]
[1767718903512,0.09067902,92680.0,92654.0,0.09365272]
[1767718903713,0.09067902,92680.0,92656.0,0.13547412]
[1767718904119,0.010793,92679.0,92657.0,0.010796]
[1767718904320,0.09067902,92680.0,92656.0,0.13547412]
[1767718904515,0.09067902,92680.0,92651.0,0.0918]
[1767718904516,0.010794,92673.0,92651.0,0.1444174]
[1767718904715,0.10147302,92673.0,92651.0,0.1286214]
[1767718905224,0.09067902,92673.0,92651.0,0.1286214]
[1767718905615,0.04206105,92678.0,92658.0,0.010796]
[1767718906014,0.0918,92677.0,92658.0,0.010796]
[1767718906311,0.0918,92677.0,92652.0,0.13547412]
[1767718906312,0.0918,92677.0,92657.0,0.010796]
[1767718906510,0.0918,92677.0,92653.0,0.13547412]
[1767718906714,0.0918,92677.0,92657.0,0.010796]
[1767718906922,0.0918,92677.0,92659.0,0.010795]
[1767718907821,0.010794,92676.0,92653.0,0.13547412]
[1767718908026,0.010794,92674.0,92653.0,0.13547412]
[1767718908417,0.102594,92677.0,92653.0,0.14627012]
[1767718908725,0.0918,92677.0,92656.0,0.010796]
[1767718908923,0.0918,92677.0,92655.0,0.13547412]
[1767718910650,0.0918,92677.0,92661.0,0.010795]
[1767718910848,0.0918,92677.0,92658.0,0.010796]
[1767718911048,0.09067902,92675.0,92651.0,0.0868]
[1767718911236,0.09067902,92675.0,92647.0,0.13547412]
[1767718911237,0.10147302,92674.0,92654.0,0.010796]
[1767718911441,0.09067902,92673.0,92654.0,0.010796]
[1767718911641,0.010794,92672.0,92647.0,0.13547412]
[1767718911944,0.09067902,92673.0,92651.0,0.010796]
[1767718912542,0.010796,92658.0,92642.0,0.0918]
[1767718912744,0.13274007,92657.0,92639.0,0.00228972]
[1767718912947,0.04206105,92652.0,92639.0,0.00228972]
[1767718913248,0.04206105,92652.0,92624.0,0.0418214]
[1767718913249,0.11234578,92651.0,92628.0,0.0918]
[1767718913453,0.02166676,92650.0,92632.0,0.010799]
[1767718913638,0.09067902,92651.0,92628.0,0.0918]
[1767718913639,0.02166676,92649.0,92628.0,0.0918]
[1767718913836,0.02166676,92648.0,92633.0,0.0418214]
[1767718914038,0.0918,92661.0,92633.0,0.0418214]
[1767718914039,0.02166676,92647.0,92636.0,0.010798]
[1767718914247,0.02166676,92647.0,92633.0,0.010798]
[1767718914248,0.02166676,92646.0,92633.0,0.010798]
[1767718914449,0.02166676,92645.0,92635.0,0.010798]
[1767718914641,0.02166676,92644.0,92635.0,0.010798]
[1767718914842,0.02166676,92643.0,92635.0,0.010798]
[1767718915043,0.02166676,92642.0,92633.0,0.010798]
[1767718915242,0.02166676,92641.0,92635.0,0.010798]
[1767718915443,0.00010463,92647.0,92635.0,0.010798]
[1767718916443,0.00010463,92647.0,92630.0,0.13547412]
[1767718916638,0.00010463,92647.0,92632.0,0.13547412]
[1767718916844,0.010795,92660.0,92631.0,0.010799]
[1767718916845,0.0918,92662.0,92648.0,0.1341991]
[1767718917045,0.10147302,92671.0,92639.0,0.0918]
[1767718917250,0.0918,92670.0,92651.0,0.010796]
[1767718917554,0.10464847,92671.0,92654.0,0.010796]
[1767718917742,0.0918,92670.0,92654.0,0.010796]
[1767718917939,0.09898088,92681.0,92643.0,0.010797]
[1767718918141,0.0918,92680.0,92657.0,0.010796]
[1767718918344,0.09898088,92688.0,92668.0,0.010794]
[1767718918647,0.19078088,92687.0,92659.0,0.0918]
[1767718919052,0.09898088,92686.0,92660.0,0.03796197]
[1767718919950,0.10977288,92686.0,92664.0,0.010795]
[1767718920147,0.09898088,92685.0,92660.0,0.03796197]
[1767718920457,0.09898088,92685.0,92660.0,0.02896197]
[1767718920654,0.09898088,92685.0,92664.0,0.010795]
[1767718920954,0.10574295,92687.0,92658.0,0.0918]
[1767718920955,0.09898088,92677.0,92658.0,0.0918]
[1767718921144,0.10977488,92677.0,92658.0,0.0918]
[1767718921349,0.09707256,92676.0,92658.0,0.0918]
[1767718921745,0.05142714,92673.0,92658.0,0.0918]
[1767718921945,0.05142714,92673.0,92649.0,0.010797]
[1767718921946,0.19966656,92674.0,92649.0,0.0918]
[1767718922163,0.09707256,92680.0,92657.0,0.09681419]
[1767718922356,0.09707256,92680.0,92651.0,0.010796]
[1767718922357,0.09707256,92688.0,92659.0,0.09681419]
[1767718922661,0.0918,92687.0,92677.0,0.010793]
[1767718922956,0.0918,92689.0,92674.0,0.010794]
[1767718923150,0.0918,92689.0,92667.0,0.03996647]
[1767718923352,0.0918,92689.0,92676.0,0.010793]
[1767718923557,0.0918,92689.0,92667.0,0.03996647]
[1767718923759,0.0918,92689.0,92675.0,0.010794]
[1767718923954,0.09707256,92694.0,92667.0,0.03996647]
[1767718923955,0.09707256,92694.0,92668.0,0.09681419]
[1767718924257,0.09707256,92694.0,92671.0,0.03996647]
[1767718925460,0.11096476,92694.0,92676.0,0.010794]
[1767718925654,0.11096476,92694.0,92672.0,0.010794]
[1767718925854,0.11096476,92694.0,92674.0,0.010794]
[1767718926062,0.09707256,92690.0,92669.0,0.102594]
[1767718926566,0.09707256,92689.0,92669.0,0.102594]
[1767718926962,0.09707256,92696.0,92674.0,0.03996647]
[1767718927170,0.04063314,92703.0,92681.0,0.03996647]
[1767718927171,0.09707256,92703.0,92681.0,0.03996647]
[1767718927467,0.11073835,92703.0,92682.0,0.010793]
[1767718928260,0.11073835,92703.0,92679.0,0.078593]
[1767718928454,0.11073835,92703.0,92680.0,0.010793]
[1767718928662,0.11073835,92703.0,92679.0,0.078593]
[1767718928663,0.09707256,92696.0,92679.0,0.078593]
[1767718929565,0.09707256,92696.0,92680.0,0.010793]
[1767718930067,0.09707256,92696.0,92679.0,0.078593]
[1767718930466,0.09707256,92696.0,92679.0,0.089386]
[1767718930662,0.09707256,92696.0,92679.0,0.078593]
[1767718931165,0.09707256,92696.0,92660.0,0.12715203]
[1767718931166,0.09707256,92689.0,92680.0,0.0918]
[1767718931370,0.09707256,92689.0,92663.0,0.03996647]
[1767718931555,0.09707256,92689.0,92664.0,0.0918]
[1767718931753,0.09707256,92689.0,92678.0,0.010793]
[1767718931954,0.09707256,92696.0,92677.0,0.010793]
[1767718932358,0.09707256,92696.0,92672.0,0.03996647]
[1767718933157,0.09707256,92696.0,92674.0,0.03996647]
[1767718933373,0.00215753,92699.0,92683.0,0.010793]
[1767718933771,0.00215753,92699.0,92685.0,0.010792]
[1767718933968,0.00215753,92699.0,92675.0,0.0918]
[1767718933969,0.13986323,92699.0,92675.0,0.0918]
[1767718934173,0.09707256,92695.0,92675.0,0.0918]
[1767718934776,0.09707256,92695.0,92678.0,0.010793]
[1767718935271,0.09707256,92695.0,92675.0,0.0918]
[1767718935272,0.00215753,92699.0,92686.0,0.03996647]
[1767718935469,0.0918,92703.0,92680.0,0.22396622]
[1767718935677,0.0918,92703.0,92680.0,0.09681419]
[1767718935863,0.0918,92703.0,92680.0,0.08681419]
[1767718936065,0.0918,92703.0,92684.0,0.010793]
[1767718936265,0.18887256,92703.0,92684.0,0.010793]
[1767718936774,0.18887256,92703.0,92686.0,0.010792]
[1767718937378,0.18887256,92703.0,92680.0,0.08681419]
[1767718937573,0.18887256,92703.0,92685.0,0.010792]
[1767718937976,0.18887256,92703.0,92687.0,0.010792]
[1767718938481,0.04063314,92719.0,92687.0,0.03996647]
[1767718938679,0.01420168,92719.0,92704.0,0.01079]
[1767718938983,0.010788,92722.0,92700.0,0.010791]
[1767718939181,0.04063314,92724.0,92704.0,0.01079]
[1767718939481,0.0918,92726.0,92705.0,0.01079]
[1767718939687,0.0918,92726.0,92700.0,0.09681419]
[1767718939688,0.0918,92726.0,92704.0,0.01079]
[1767718940072,0.010788,92725.0,92704.0,0.01079]
[1767718940677,0.0918,92726.0,92707.0,0.01079]
[1767718940871,0.0918,92726.0,92699.0,0.0918]
[1767718940872,0.0918,92726.0,92710.0,0.12715203]
[1767718941184,0.1377057,92722.0,92698.0,0.10760519]
[1767718941385,0.010788,92720.0,92699.0,0.0918]
[1767718941781,0.09707256,92720.0,92699.0,0.0918]
[1767718942086,0.010789,92717.0,92699.0,0.0918]
[1767718942383,0.010789,92715.0,92699.0,0.0918]
[1767718942685,0.010789,92718.0,92699.0,0.0918]
[1767718942982,0.0918,92727.0,92683.0,0.09681419]
[1767718942983,0.01079,92708.0,92683.0,0.09681419]
[1767718943184,0.01079,92708.0,92679.0,0.03996647]
[1767718943185,0.09707256,92705.0,92684.0,0.0918]
[1767718943695,0.09707256,92703.0,92676.0,0.09681419]
[1767718943879,0.05142314,92704.0,92681.0,0.0918]
[1767718943880,0.09707256,92702.0,92681.0,0.0918]
[1767718944486,0.09707256,92701.0,92681.0,0.0918]
[1767718944683,0.10786356,92697.0,92681.0,0.0918]
[1767718944876,0.09707256,92697.0,92681.0,0.0918]
[1767718945076,0.10786356,92697.0,92681.0,0.0918]
[1767718945476,0.09707256,92697.0,92677.0,0.010793]
[1767718945680,0.09707256,92697.0,92673.0,0.0918]
[1767718945878,0.0918,92703.0,92618.0,0.054004]
[1767718945879,0.09707256,92685.0,92654.0,0.13678066]
[1767718946078,0.0918,92684.0,92661.0,0.010795]
[1767718946278,0.0918,92684.0,92659.0,0.03996647]
[1767718946480,0.18887256,92684.0,92659.0,0.03996647]
[1767718946677,0.09707256,92684.0,92660.0,0.09681419]
[1767718946893,0.131718,92711.0,92670.0,0.13678066]
[1767718946894,0.0918,92686.0,92670.0,0.13678066]
[1767718947078,0.0918,92688.0,92663.0,0.0918]
[1767718947277,0.0918,92689.0,92663.0,0.0918]
[1767718948189,0.0918,92689.0,92668.0,0.010794]
[1767718948980,0.010792,92688.0,92664.0,0.010795]
[1767718949187,0.09707256,92688.0,92667.0,0.010795]
[1767718949884,0.09707256,92688.0,92669.0,0.010794]
[1767718950079,0.07207256,92688.0,92669.0,0.010794]
[1767718950393,0.07207256,92688.0,92663.0,0.13176647]
[1767718951094,0.07207256,92688.0,92663.0,0.22858066]
[1767718951294,0.08286456,92688.0,92665.0,0.010795]
[1767718951488,0.08286456,92688.0,92663.0,0.22837566]
[1767718952789,0.08286456,92688.0,92673.0,0.010794]
[1767718952790,0.07207256,92688.0,92673.0,0.010794]
[1767718953391,0.07207256,92688.0,92669.0,0.00215823]
[1767718953392,0.07207256,92688.0,92669.0,0.01295223]
[1767718953596,0.07207256,92688.0,92669.0,0.00215823]
[1767718954197,0.010793,92684.0,92669.0,0.00215823]
[1767718954382,0.09254758,92681.0,92669.0,2.3e-07]
[1767718954588,0.09254758,92681.0,92657.0,0.03935742]
[1767718954589,0.09254758,92671.0,92657.0,0.0918]
[1767718954787,0.09254758,92671.0,92657.0,0.102596]
[1767718955193,0.04085928,92678.0,92659.0,0.010795]
[1767718955392,0.13340686,92678.0,92663.0,0.010795]
[1767718955696,0.3672,92719.0,92657.0,0.0918]
[1767718955697,0.18434758,92686.0,92667.0,0.010795]
[1767718955899,0.09254758,92694.0,92671.0,0.010794]
[1767718956196,0.0918,92693.0,92671.0,0.010794]
[1767718956392,0.010792,92693.0,92670.0,0.03935742]
[1767718956697,0.0918,92692.0,92674.0,0.010794]
[1767718957393,0.09254758,92709.0,92683.0,0.09424836]
[1767718957700,0.0949954,92728.0,92683.0,0.09424836]
[1767718957701,0.0918,92715.0,92697.0,0.010791]
[1767718957891,0.18434758,92715.0,92697.0,0.010791]
[1767718958291,0.18434758,92715.0,92691.0,0.05014942]
[1767718958601,0.10333658,92714.0,92691.0,0.05014942]
[1767718959099,0.09254758,92714.0,92691.0,0.03414842]
[1767718959492,0.09254758,92714.0,92697.0,0.010791]
[1767718959684,0.09254758,92721.0,92701.0,0.010791]
[1767718959886,0.09254758,92721.0,92706.0,0.01079]
[1767718960199,0.18434758,92721.0,92700.0,0.010791]
[1767718960997,0.18434758,92721.0,92702.0,0.01079]
[1767718961390,0.09254758,92721.0,92696.0,0.09424836]
[1767718961595,0.09254758,92721.0,92697.0,0.03935742]
[1767718962200,0.09254758,92721.0,92702.0,0.01079]
[1767718962401,0.0918,92725.0,92696.0,0.09424836]
[1767718962594,0.09254758,92717.0,92695.0,0.0918]
[1767718962794,0.09254758,92716.0,92693.0,0.010792]
[1767718963299,0.09254758,92716.0,92694.0,0.0918]
[1767718963497,0.09254758,92716.0,92693.0,0.010792]
[1767718963704,0.09254758,92716.0,92694.0,0.0918]
[1767718963888,0.10333658,92716.0,92695.0,0.010791]
[1767718964493,0.09254758,92716.0,92695.0,0.010791]
[1767718964695,0.09254758,92716.0,92695.0,0.03935742]
[1767718964901,0.04085928,92723.0,92699.0,0.03935742]
[1767718964902,0.09254758,92723.0,92699.0,0.03935742]
[1767718965401,0.09254758,92723.0,92710.0,0.00863247]
[1767718965594,0.010787,92733.0,92712.0,0.010789]
[1767718965793,0.0918,92734.0,92718.0,0.010789]
[1767718965993,0.0918,92734.0,92713.0,0.010789]
[1767718966214,0.0918,92734.0,92715.0,0.010789]
[1767718966508,0.04085928,92737.0,92717.0,0.010789]
[1767718966509,0.0918,92735.0,92717.0,0.010789]
[1767718966695,0.0918,92735.0,92715.0,0.010789]
[1767718966895,0.0918,92735.0,92710.0,0.09424836]
[1767718968394,0.09176,92735.0,92710.0,0.09424836]
[1767718968600,0.09176,92735.0,92710.0,0.22140039]
[1767718969202,0.13340686,92737.0,92718.0,0.010789]
[1767718969402,0.09176,92741.0,92724.0,0.010788]
[1767718969699,0.10333358,92744.0,92720.0,0.10503636]
[1767718969700,0.102546,92742.0,92720.0,0.10503636]
[1767718970207,0.11615476,92742.0,92720.0,0.10503636]
[1767718970595,0.010787,92737.0,92715.0,0.09176]
[1767718970804,0.010787,92737.0,92716.0,0.010789]
[1767718971106,0.14419286,92740.0,92720.0,0.010788]
[1767718972002,0.13340686,92740.0,92716.0,0.09424836]
[1767718972196,0.13340686,92740.0,92723.0,0.010788]
[1767718972707,0.13340686,92740.0,92719.0,0.010789]
[1767718972897,0.1053995,92742.0,92715.0,0.13111742]
[1767718972898,0.010787,92733.0,92715.0,0.09176]
[1767718973094,0.13340686,92733.0,92714.0,0.010789]
[1767718973300,0.010787,92732.0,92715.0,0.09176]
[1767718973498,0.09254758,92721.0,92715.0,0.09176]
[1767718973711,0.1053995,92742.0,92709.0,0.09176]
[1767718973712,0.010788,92727.0,92709.0,0.09176]
[1767718973903,0.13340686,92728.0,92711.0,0.010789]
[1767718974107,0.1053995,92742.0,92714.0,0.010789]
[1767718974108,0.010787,92734.0,92714.0,0.010789]
[1767718974308,0.09254758,92733.0,92714.0,0.010789]
[1767718974710,0.09254758,92733.0,92710.0,0.09176]
[1767718974913,0.010788,92728.0,92711.0,0.09176]
[1767718975302,0.09254758,92733.0,92711.0,0.09176]
[1767718975303,0.010787,92731.0,92711.0,0.09176]
[1767718975903,0.010787,92731.0,92711.0,0.102549]
[1767718976104,0.09254758,92733.0,92711.0,0.09176]
[1767718976305,0.09254758,92732.0,92711.0,0.09176]
[1767718976507,0.010787,92729.0,92711.0,0.09176]
[1767718976703,0.10333458,92732.0,92711.0,0.09176]
[1767718976913,0.13340686,92731.0,92711.0,0.09176]
[1767718977310,0.13340686,92731.0,92711.0,0.102549]
[1767718978100,0.13340686,92731.0,92711.0,0.09176]
[1767718978514,0.13340686,92731.0,92712.0,0.010789]
[1767718978905,0.09254758,92731.0,92715.0,0.010789]
[1767718979409,0.13340686,92736.0,92719.0,0.010789]
[1767718980001,0.010787,92734.0,92713.0,0.010789]
[1767718980203,0.010787,92734.0,92715.0,0.010789]
[1767718980411,0.010787,92735.0,92714.0,0.010789]
[1767718980616,0.13340686,92735.0,92716.0,0.010789]
[1767718980816,0.13340686,92735.0,92717.0,0.010789]
[1767718981001,0.09858936,92742.0,92720.0,0.09706794]
[1767718981207,0.09176,92743.0,92725.0,0.09706794]
[1767718981503,0.09176,92746.0,92725.0,0.09706794]
[1767718981710,0.010786,92740.0,92725.0,0.09706794]
[1767718981900,0.09176,92746.0,92721.0,0.09176]
[1767718981901,0.010786,92738.0,92721.0,0.09176]
[1767718982117,0.09176,92746.0,92721.0,0.09176]
[1767718982118,0.14369106,92741.0,92721.0,0.09176]
[1767718982310,0.09582617,92741.0,92721.0,0.08376]
[1767718982611,0.18758617,92746.0,92722.0,0.03952799]
[1767718982813,0.09176,92746.0,92724.0,0.13139414]
[1767718983005,0.09176,92746.0,92725.0,0.09186615]
[1767718983205,0.09176,92746.0,92721.0,0.08376]
[1767718983206,0.14369106,92742.0,92721.0,0.08376]
[1767718983406,0.13290506,92742.0,92721.0,0.08376]
[1767718983606,0.010786,92738.0,92721.0,0.08376]
[1767718984116,0.10661217,92741.0,92721.0,0.08376]
[1767718984319,0.14369106,92741.0,92721.0,0.08376]
[1767718984505,0.010786,92738.0,92721.0,0.08376]
[1767718984912,0.13290506,92741.0,92721.0,0.08376]
[1767718985708,0.010786,92737.0,92721.0,0.08376]
[1767718985904,0.12883889,92746.0,92722.0,0.09186615]
[1767718986118,0.12883889,92746.0,92730.0,0.010787]
[1767718986515,0.12883889,92746.0,92732.0,0.010787]
[1767718986715,0.09176,92746.0,92732.0,0.010787]
[1767718986917,0.09176,92746.0,92729.0,0.010787]
[1767718987114,0.09176,92746.0,92731.0,0.010787]
[1767718987708,0.03707889,92751.0,92728.0,0.09186615]
[1767718987709,0.09176,92750.0,92728.0,0.10265315]
[1767718987910,0.10519968,92750.0,92730.0,0.010787]
[1767718988218,0.09176,92750.0,92732.0,0.010787]
[1767718988411,0.09176,92750.0,92734.0,0.010787]
[1767718988809,0.09176,92750.0,92731.0,0.010787]
[1767718989009,0.09176,92750.0,92733.0,0.010787]
[1767718989410,0.010785,92754.0,92733.0,0.010787]
[1767718989617,0.010785,92754.0,92734.0,0.09186615]
[1767718989817,0.010785,92750.0,92731.0,0.09176]
[1767718990212,0.13290506,92752.0,92731.0,0.08176]
[1767718990612,0.010785,92749.0,92731.0,0.08176]
[1767718990815,0.13290506,92747.0,92731.0,0.08176]
[1767718991114,0.13290506,92746.0,92731.0,0.08176]
[1767718991313,0.010786,92745.0,92731.0,0.08176]
[1767718991523,0.13290506,92746.0,92731.0,0.08176]
[1767718992416,0.13290506,92746.0,92732.0,0.010787]
[1767718992622,0.03707889,92752.0,92731.0,0.00636877]
[1767718992816,0.010782,92780.0,92731.0,0.00636877]
[1767718992817,0.03707889,92763.0,92752.0,0.010785]
[1767718993022,0.09582617,92765.0,92753.0,0.010785]
[1767718993413,0.09582617,92765.0,92743.0,0.18362615]
[1767718993919,0.12883889,92769.0,92744.0,0.09186615]
[1767718994119,0.09176,92769.0,92752.0,0.010785]
[1767718994314,0.09176,92769.0,92753.0,0.010785]
[1767718995226,0.09176,92769.0,92752.0,0.010785]
[1767718995427,0.09582617,92772.0,92748.0,0.09186615]
[1767718995628,0.010782,92775.0,92750.0,0.13139414]
[1767718995827,0.0238391,92775.0,92751.0,0.09186615]
[1767718996028,0.0130571,92775.0,92755.0,0.010784]
[1767718996235,0.010782,92773.0,92753.0,0.09176]
[1767718996528,0.13290506,92775.0,92753.0,0.102545]
[1767718996827,0.13290506,92775.0,92755.0,0.010784]
[1767718997022,0.010782,92774.0,92754.0,0.010784]
[1767718997219,0.14368706,92774.0,92754.0,0.010784]
[1767718997416,0.09582617,92773.0,92754.0,0.010784]
[1767718997723,0.13290506,92773.0,92754.0,0.010784]
[1767718997924,0.010782,92772.0,92753.0,0.090544]
[1767718998125,0.010783,92770.0,92753.0,0.090544]
[1767718998315,0.13290506,92772.0,92753.0,0.090544]
[1767718998721,0.13290506,92772.0,92754.0,0.010784]
[1767718999122,0.13290506,92772.0,92753.0,0.090544]
[1767718999424,0.13290506,92772.0,92754.0,0.010784]
[1767718999630,0.0136333,92775.0,92753.0,0.18241015]
[1767718999829,0.09176,92776.0,92760.0,0.010784]
[1767719000131,0.1049259,92776.0,92760.0,0.010784]
[1767719001022,0.23783096,92776.0,92756.0,0.010784]
[1767719001224,0.13290506,92775.0,92756.0,0.010784]
[1767719001935,0.13290506,92775.0,92758.0,0.010784]
[1767719002136,0.09176,92776.0,92763.0,0.010783]
[1767719002325,0.03707889,92772.0,92744.0,0.010786]
[1767719002634,0.13290506,92769.0,92749.0,0.010785]
[1767719002827,0.14368706,92773.0,92749.0,0.13139414]
[1767719003027,0.010783,92766.0,92750.0,0.09172]
[1767719003226,0.010783,92766.0,92706.0,0.04955825]
[1767719003227,0.04786289,92758.0,92736.0,0.09186615]
[1767719003533,0.010782,92774.0,92737.0,0.09172]
[1767719003534,0.13290506,92754.0,92737.0,0.09172]
[1767719003739,0.13290506,92754.0,92738.0,0.09172]
[1767719004035,0.13290506,92750.0,92739.0,0.09172]
[1767719004626,0.09582617,92750.0,92739.0,0.09172]
[1767719005033,0.03707889,92755.0,92739.0,0.09172]
[1767719005740,0.09582617,92756.0,92737.0,0.102506]
[1767719007530,0.09582617,92756.0,92737.0,0.09172]
[1767719009340,0.09582617,92756.0,92738.0,0.010786]
[1767719009635,0.09172,92765.0,92744.0,0.010786]
[1767719009636,0.09582617,92762.0,92744.0,0.010786]
[1767719009837,0.09172,92765.0,92743.0,0.09186615]
[1767719010138,0.09172,92765.0,92748.0,0.010785]
[1767719010339,0.09172,92765.0,92743.0,0.13139414]
[1767719010542,0.09172,92765.0,92750.0,0.010785]
[1767719010734,0.09172,92765.0,92747.0,0.13139414]
[1767719010938,0.09172,92765.0,92750.0,0.010785]
[1767719011737,0.09172,92765.0,92744.0,0.010786]
[1767719011947,0.102503,92765.0,92745.0,0.010785]
[1767719012837,0.09172,92765.0,92745.0,0.010785]
[1767719013034,0.13026937,92757.0,92735.0,0.09781495]
[1767719013238,0.13026937,92757.0,92730.0,0.03800836]
[1767719013239,0.13026937,92753.0,92736.0,0.09172]
[1767719013442,0.13026937,92753.0,92736.0,0.08372]
[1767719013941,0.13026937,92753.0,92737.0,0.102506]
[1767719014140,0.13026937,92753.0,92737.0,0.010786]
[1767719014342,0.13026937,92753.0,92737.0,0.09172]
[1767719015235,0.14105437,92752.0,92728.0,0.09781495]
[1767719015441,0.03774442,92751.0,92733.0,0.010787]
[1767719016948,0.03774442,92751.0,92730.0,0.102507]
[1767719017447,0.03774442,92751.0,92732.0,0.010787]
[1767719018049,0.09252495,92752.0,92736.0,0.010787]
[1767719018244,0.09252495,92752.0,92730.0,0.09172]
[1767719018438,0.09252495,92752.0,92731.0,0.010787]
[1767719019140,0.010785,92751.0,92730.0,0.09172]
[1767719019536,0.03774442,92750.0,92730.0,0.09172]
[1767719019744,0.03774442,92750.0,92730.0,0.102507]
[1767719020048,0.09252495,92751.0,92730.0,0.102507]
[1767719020250,0.09252495,92751.0,92732.0,0.010787]
[1767719020449,0.03765971,92741.0,92721.0,0.010788]
[1767719020648,0.13018466,92734.0,92716.0,0.09172]
[1767719021037,0.03765971,92739.0,92716.0,0.06872]
[1767719021238,0.12990521,92736.0,92716.0,0.06872]
[1767719021442,0.12990521,92736.0,92718.0,0.010789]
[1767719021748,0.09172,92751.0,92716.0,0.06872]
[1767719021749,0.18424495,92751.0,92727.0,0.13582331]
[1767719021947,0.09252495,92751.0,92727.0,0.13582331]
[1767719022248,0.09252495,92751.0,92733.0,0.010787]
[1767719022443,0.09252495,92751.0,92730.0,0.13582331]
[1767719022643,0.09252495,92751.0,92730.0,0.09781495]
[1767719023145,0.09252495,92751.0,92733.0,0.010787]
[1767719023445,0.1293129,92749.0,92727.0,0.09172]
[1767719023652,0.03678795,92733.0,92710.0,0.09781495]
[1767719023847,0.03678795,92733.0,92711.0,0.18953495]
[1767719024047,0.03678795,92733.0,92720.0,0.010788]
[1767719024353,0.09252495,92734.0,92720.0,0.010788]
[1767719024648,0.12806312,92734.0,92714.0,0.010789]
[1767719024953,0.12806312,92734.0,92716.0,0.010789]
[1767719025145,0.12806312,92733.0,92716.0,0.010789]
[1767719025346,0.12806312,92733.0,92718.0,0.010789]
[1767719025852,0.12806312,92733.0,92720.0,0.010788]
[1767719026753,0.12806312,92733.0,92715.0,0.010789]
[1767719026955,0.12806312,92733.0,92717.0,0.010789]
[1767719027951,0.12806312,92733.0,92719.0,0.010789]
[1767719028847,0.1258971,92730.0,92706.0,0.03800836]
[1767719029047,0.1258971,92717.0,92706.0,0.09172]
[1767719029249,0.12555859,92714.0,92684.0,0.03800836]
[1767719029552,0.12555859,92713.0,92701.0,0.010791]
[1767719030148,0.12555859,92713.0,92688.0,0.010792]
[1767719030149,0.12555859,92713.0,92699.0,0.010791]
[1767719030955,0.12555859,92713.0,92703.0,0.01079]
[1767719031147,0.09252495,92713.0,92700.0,0.010791]
[1767719033147,0.09252495,92713.0,92702.0,0.01079]
[1767719033345,0.1243948,92713.0,92699.0,0.010791]
[1767719033548,0.09252495,92713.0,92701.0,0.010791]
[1767719035150,0.12481556,92707.0,92684.0,0.09781495]
[1767719035452,0.12448066,92706.0,92684.0,0.09781495]
[1767719035650,0.12448066,92706.0,92665.0,0.1203]
[1767719035651,0.12448066,92700.0,92678.0,0.09781495]
[1767719036047,0.12448066,92700.0,92686.0,0.010792]
[1767719036657,0.12448066,92700.0,92678.0,0.09660695]
[1767719037152,0.12448066,92700.0,92692.0,0.010792]
[1767719037351,0.1516,92720.0,92697.0,0.010791]
[1767719037556,0.09176,92719.0,92692.0,0.010792]
[1767719038146,0.01079,92711.0,92692.0,0.010792]
[1767719039558,0.0030986,92708.0,92692.0,0.010792]
[1767719039760,0.09176,92707.0,92692.0,0.010792]
[1767719040057,0.09176,92707.0,92695.0,0.010791]
[1767719040257,0.09176,92707.0,92693.0,0.010792]
[1767719040455,0.00234447,92697.0,92670.0,0.03295136]
[1767719040656,0.09176,92707.0,92670.0,0.03295136]
[1767719040657,0.00234447,92695.0,92671.0,0.1878357]
[1767719041051,0.00234447,92695.0,92672.0,0.0960757]
[1767719041247,0.00200288,92694.0,92672.0,0.0960757]
[1767719041556,0.00200288,92694.0,92658.0,0.010796]
[1767719041557,0.00200288,92688.0,92671.0,0.010794]
[1767719041959,0.01079,92705.0,92671.0,0.010794]
[1767719041960,0.00200288,92694.0,92671.0,0.03344073]
[1767719042159,0.09176,92693.0,92672.0,0.12370841]
[1767719042359,0.09176,92693.0,92676.0,0.010793]
[1767719042566,0.09176,92693.0,92678.0,0.010793]
[1767719043559,0.09176,92693.0,92675.0,0.010794]
[1767719043758,0.010791,92696.0,92677.0,0.010793]
[1767719044065,0.09176,92692.0,92677.0,0.010793]
[1767719044363,0.09176,92692.0,92672.0,0.03344073]
[1767719044557,0.09176,92701.0,92689.0,0.010792]
[1767719044750,0.00062845,92710.0,92698.0,0.010791]
[1767719044950,0.09176,92711.0,92703.0,0.01079]
[1767719045151,0.09818405,92720.0,92708.0,0.01079]
[1767719045355,0.09818405,92720.0,92694.0,0.04423173]
[1767719045356,0.09176,92719.0,92706.0,0.01079]
[1767719046164,0.09890722,92727.0,92699.0,0.03344073]
[1767719046368,0.09890722,92727.0,92653.0,0.2283]
[1767719046369,0.09176,92729.0,92711.0,0.03344073]
[1767719046551,0.09818405,92742.0,92724.0,0.010788]
[1767719046755,0.09176,92738.0,92726.0,0.010788]
[1767719047162,0.012692,92746.0,92728.0,0.010787]
[1767719047365,0.09176,92745.0,92728.0,0.010787]
[1767719047755,0.010786,92744.0,92723.0,0.09026768]